Cogmind - Beta 15 @@@ ROGUE MODE // 2025.06.10 @ 10:30:33 Player: Ev Result: Destroyed by G-47 Trooper with Particle Gun Performance ------------- Evolutions (2) 1000 Regions Visited (3) 600 Robots Destroyed (46) 230 Value Destroyed (925) 925 Prototype IDs (3) 60 Alien Tech Used (0) 0 Bonus (0) 0 TOTAL SCORE: 2815 Bonus ------- None Cogmind --------- Core Integrity 0/550 Matter 300/300 Energy 100/100 System Corruption 0% Temperature Cool (9) Movement Core (50) Location -8/Materials Parts ------- > --- POWER (1) -------- (None) > --- PROPULSION (3) --- (None) > --- UTILITY (5) ------ (None) > --- WEAPON (2) ------- (None) > --- INVENTORY (5) ---- Nuclear Core Cryofiber Web Improved Heat Sink Medium Armor Plating Improved Shield Generator Peak State ------------ > --- POWER ------------ Light Nuclear Core > --- PROPULSION ------- Flight Unit Flight Unit Flight Unit > --- UTILITY ---------- Cryofiber Web Small Storage Unit Weight Redist. System Propulsion Shielding Hacking Suite > --- WEAPON ----------- Improved Medium Laser Improved Medium Laser > --- INVENTORY -------- Cryofiber Web Improved Heat Sink Medium Armor Plating Improved Medium Laser [Rating: 23] Favorites ----------- Power Light Ion Engine Engine Light Ion Engine Power Core Light Nuclear Core Propulsion Flight Unit Leg Aluminum Leg Flight Unit Flight Unit Utility Small Storage Unit Device Weight Redist. System Storage Small Storage Unit Processor Signal Interpreter Hackware Hacking Suite Protection Propulsion Shielding Weapon Small Laser Energy Gun Small Laser Ballistic Gun Assault Rifle Build | -11 -10 -9 -8 ------- Run | Yrd Mat Mat Mat Slots Evolved 4 | . . 2 2 Power . | . . . . Propulsion 1 | . . . 1 Utility 3 | . . 2 1 Weapon . | . . . . Parts Attached 27 | 6 6 10 5 Power 8 | 1 2 4 1 Engine 5 | 1 2 1 1 Core 3 | . . 3 . Reactor . | . . . . Propulsion 7 | 2 2 2 1 Treads . | . . . . Leg 2 | 2 . . . Wheel . | . . . . Hover . | . . . . Flight 5 | . 2 2 1 Utility 6 | 1 2 2 1 Device 2 | . 1 . 1 Storage 1 | 1 . . . Processor 1 | . 1 . . Hackware 1 | . . 1 . Protection 1 | . . 1 . Artifact . | . . . . Weapon 6 | 2 . 2 2 Energy Gun 5 | 1 . 2 2 Energy Cannon . | . . . . Ballistic Gun 1 | 1 . . . Ballistic Cannon . | . . . . Launcher . | . . . . Special Weapon . | . . . . Impact Weapon . | . . . . Slashing Weapon . | . . . . Piercing Weapon . | . . . . Special Melee Weapon . | . . . . Unidentified Prototypes 3 | . . 3 . Parts Lost 15 | . . 2 13 Power 2 | . . . 2 Propulsion 4 | . . 1 3 Utility 5 | . . . 5 Weapon 4 | . . 1 3 Highest Loss Streak 7 | . . 1 7 To Critical Strikes . | . . . . Average Backups 3 | . 2 5 5 Power . | . . . . Propulsion . | . . . . Utility 2 | . . 2 3 Weapon . | . . 1 . Tool/Special . | . . . . Unused Backups 9 | . 1 2 6 Power 1 | . . . 1 Propulsion 2 | . 1 . 1 Utility 5 | . . 1 4 Weapon . | . . . . Tool/Special 1 | . . 1 . Average Slot Usage (%) 87 | . 97 94 66 Engine 7 | . 14 2 2 Core 2 | . . 8 1 Leg 7 | . 17 . . Flight 14 | . 10 22 12 Device 9 | . 5 11 14 Storage 8 | . 8 11 7 Processor 7 | . 11 9 . Hackware 2 | . . 1 8 Protection 4 | . . 10 6 Energy Gun 13 | . 14 11 13 Ballistic Gun 7 | . 14 6 . Peak Build Rating 23 | 6 8 16 23 Average Rating 10 | 4 7 13 15 On Entrance 7 | . 6 8 16 Naked Turns 10 | . . . 10 Heaviest Build 18 | 11 11 15 18 Greatest Support 20 | 20 20 14 18 Greatest Overweight (x) 2 | . . 1 2 Average Overweight (x) . | . . . . Largest Inventory Capacity 8 | 8 8 8 8 Average Capacity 7 | 7 6 8 7 Most Carried 8 | 3 5 8 6 Average Carried 3 | . 2 5 5 Final Capacity 8 | 8 5 8 5 Final Carried 7 | . 5 7 5 Class Distribution -------------------- 56% | Scavenger-Mutant 43% | Mutant Dominant Class ---------------- Mutant | -10/Materials Scavenger-Mutant | -9/Materials Scavenger-Mutant | -8/Materials Resources | -11 -10 -9 -8 ----------- Run | Yrd Mat Mat Mat Matter Collected 701 | 165 293 123 120 Remotely . | . . . . Salvage Created 1511 | . 555 443 513 Parts 106 | . 47 42 17 Haulers Intercepted 6 | . 1 3 2 Recyclers Shooed 2 | . 2 . . Parts Field Recycled . | . . . . Retrieved Matter . | . . . . Parts Self-Destructed . | . . . . Prevented . | . . . . Kills | -11 -10 -9 -8 ------- Run | Yrd Mat Mat Mat Combat Hostiles Destroyed 27 | . 12 7 8 Guns 27 | . 12 7 8 Classes Destroyed 11 | . 8 2 1 Worker 1 | . 1 . . Builder 1 | . 1 . . Hauler 6 | . 1 3 2 Recycler 2 | . 2 . . Mechanic 1 | . . 1 . Operator 3 | . 2 1 . Watcher 5 | . 3 2 . Swarmer 12 | . 9 3 . Grunt 10 | . 3 2 5 Brawler 1 | . . . 1 Sentry 4 | . . 2 2 Best Kill Streak 10 | . 4 10 3 Combat Bots Only 5 | . 3 5 3 Max Kills in Single Turn 2 | . 2 1 1 Gunslinging . | . . . . Exploded . | . . . . Melee . | . . . . Uniques/NPCs Destroyed . | . . . . Combat | -11 -10 -9 -8 -------- Run | Yrd Mat Mat Mat Hostile Shots Fired 168 | . 43 23 102 Missed 48 | . 17 9 22 Hits 120 | . 26 14 80 Projectile 120 | . 26 14 80 Critical Strikes 1 | . . . 1 Damage Taken 1623 | . 212 182 1229 Core 629 | . 39 28 562 Absorbed by Shields . | . . . . Redirected to Shielding 42 | . . 14 28 Core Remaining (%) 92 | 100 84 93 . Volleys Fired 117 | . 46 34 37 Largest 2 | . 2 2 2 Hottest 112 | . 60 60 112 Shots Fired 221 | . 91 60 70 Gun 221 | . 91 60 70 Cannon . | . . . . Launcher . | . . . . Special . | . . . . Kinetic 72 | . 46 26 . Thermal 149 | . 45 34 70 Explosive . | . . . . Electromagnetic . | . . . . Robot Hit Streak 21 | . 9 11 21 Robot Miss Streak 4 | . 4 4 2 Penetration Max . | . . . . Secondary Targets 7 | . 2 2 3 Max Gunslinging Chain 1 | . 1 1 1 Shots Hit Robots 138 | . 53 38 47 Core Hits 70 | . 30 21 19 Critical Kills . | . . . . Critical Parts Destroyed . | . . . . Critical Strikes 8 | . . . 8 Burn 8 | . . . 8 Melee Attacks . | . . . . Impact . | . . . . Slashing . | . . . . Piercing . | . . . . Sneak Attacks . | . . . . Combat Hostiles . | . . . . Follow-up Attacks . | . . . . Damage Inflicted 1987 | . 688 501 798 Guns 1987 | . 688 501 798 Cannons . | . . . . Explosions . | . . . . Melee . | . . . . Ramming . | . . . . Kinetic 585 | . 386 199 . Thermal 1402 | . 302 302 798 Explosive . | . . . . Electromagnetic . | . . . . Impact . | . . . . Slashing . | . . . . Piercing . | . . . . Highest Corruption . | . . . . Average Corruption . | . . . . Corruption Purged . | . . . . Corruption Blocked . | . . . . Overload Shots . | . . . . Overflow Damage . | . . . . Projectiles . | . . . . Explosions . | . . . . Melee . | . . . . Knockbacks . | . . . . Impact . | . . . . Kinetic . | . . . . Secondary . | . . . . Self-Inflicted Damage . | . . . . Shots . | . . . . Rammed . | . . . . Targets Rammed . | . . . . Kicked . | . . . . Crushed . | . . . . Highest Temperature 550 | . 18 63 550 Average Temperature 91 | . 7 18 219 Received Heat Transfer 816 | . 24 81 711 Effects 6 | . . . 6 Energy Bleed 2 | . . . 2 Short Circuit 1 | . . . 1 Damage (minor) 2 | . . . 2 Damage (major) 1 | . . . 1 Siege Activations . | . . . . Martial Activations . | . . . . Shielding Activations . | . . . . Robots Disrupted . | . . . . Combat Hostiles . | . . . . Robots Corrupted . | . . . . Combat Hostiles . | . . . . Parts Fried . | . . . . Impact Corruptions . | . . . . Robots Melted . | . . . . Combat Hostiles . | . . . . Parts Melted 6 | . . . 6 Heat Transferred 3679 | . 675 673 2331 Parts Sabotaged . | . . . . Parts Stolen . | . . . . Parts Stripped . | . . . . Power Chain Reactions . | . . . . Alert | -11 -10 -9 -8 ------- Run | Yrd Mat Mat Mat Maximum Alert Level . | . . . . Low Security (%) 100 | 100 100 100 100 Level 1 . | . . . . Level 2 . | . . . . Level 3 . | . . . . Level 4 . | . . . . Level 5 . | . . . . High Security . | . . . . Max Security . | . . . . Peak Influence 187 | . 167 176 187 Initial 57 | . . 57 51 Average 105 | . 104 104 121 Influence Increases 866 | . 354 226 286 Destroy 0b10 Robot/C 540 | . 240 140 160 Destroy 0b10 Robot/NC 95 | . 50 35 10 Destroy Leader 152 | . 48 50 54 Successful Hack 14 | . 14 . . Destroy Structure 5 | . 2 1 2 Lose Combat Pursuer 60 | . . . 60 Influence Decreases 819 | . 218 239 362 Entered New Map 151 | . . 79 72 Time Decay 518 | . 218 140 160 Lost Part 150 | . . 20 130 Squads Dispatched 4 | . 1 1 2 Investigation . | . . . . Extermination . | . . . . Reinforcement 3 | . 1 1 1 Assault . | . . . . Garrison 1 | . . . 1 Intercept . | . . . . Searches Triggered . | . . . . Construction Impeded . | . . . . Haulers Reinforced . | . . . . Active Scanning Responses . | . . . . Cargo Convoy Interrupts . | . . . . Stealth | -11 -10 -9 -8 --------- Run | Yrd Mat Mat Mat Distress Signals 4 | . 1 2 1 Communications Jammed . | . . . . Distress Signals . | . . . . Times Spotted 40 | . 19 12 9 Peak Tracking Total 6 | . 4 4 6 Tactical Retreats 1 | . . . 1 Traps | -11 -10 -9 -8 ------- Run | Yrd Mat Mat Mat Traps Triggered . | . . . . Indirectly . | . . . . Trap Hack Attempts . | . . . . Triggered . | . . . . Disarmed . | . . . . Reprogrammed . | . . . . Reused . | . . . . Traps Extracted . | . . . . Installed . | . . . . Triggered . | . . . . Machines | -11 -10 -9 -8 ---------- Run | Yrd Mat Mat Mat Machines Disabled . | . . . . Max in Single Turn . | . . . . Machines Repaired . | . . . . Machines Dismantled . | . . . . Machines Sabotaged . | . . . . Overloaded Fab Kills . | . . . . Hacking | -11 -10 -9 -8 --------- Run | Yrd Mat Mat Mat Machines Accessed 5 | . 4 1 . Terminals 5 | . 4 1 . Fabricators . | . . . . Repair Stations . | . . . . Recycling Units . | . . . . Scanalyzers . | . . . . Garrison Access . | . . . . Total Hacks 12 | . 10 2 . Successful 4 | . 4 . . Failed 8 | . 6 2 . Catastrophic 3 | . 2 1 . Database Lockouts . | . . . . Manual . | . . . . Terminals 12 | . 10 2 . Fabricators . | . . . . Repair Stations . | . . . . Recycling Units . | . . . . Scanalyzers . | . . . . Garrison Access . | . . . . Terminal Hacks 4 | . 4 . . Record 3 | . 3 . . Level Access Points 1 | . 1 . . Fabricator Hacks . | . . . . Repair Station Hacks . | . . . . Recycling Unit Hacks . | . . . . Scanalyzer . | . . . . Garrison Access Hacks . | . . . . Unauthorized Hacks . | . . . . Terminals . | . . . . Fabricators . | . . . . Repair Stations . | . . . . Recycling Units . | . . . . Scanalyzers . | . . . . Garrison Access . | . . . . Data Cores Recovered 1 | . . 1 . Used . | . . . . Hacking Detections 5 | . 4 1 . Full Trace Events 1 | . 1 . . Feedback Events . | . . . . Feedback Blocked . | . . . . Robot Schematics Acquired . | . . . . Robots Built . | . . . . Authchips . | . . . . Time . | . . . . Total Robot Build Rating . | . . . . Part Schematics Acquired . | . . . . Parts Built . | . . . . Authchips . | . . . . Time . | . . . . Total Part Build Rating . | . . . . Parts Repaired . | . . . . Time . | . . . . Parts Recycled . | . . . . Recycled Matter . | . . . . Retrieved Matter . | . . . . Retrieved Components . | . . . . Parts Scanalyzed . | . . . . Part Schematics Acquired . | . . . . Parts Damaged . | . . . . Bothacking | -11 -10 -9 -8 ------------ Run | Yrd Mat Mat Mat Used RIF Installer . | . . . . Robots Hacked . | . . . . Non-combat . | . . . . Combat . | . . . . Robot Hacks Applied . | . . . . Relay Couplers Released . | . . . . Fabnet Peak Effective % . | . . . . Robots Rewired . | . . . . Allies Hacked . | . . . . Hacks Repelled . | . . . . Allies | -11 -10 -9 -8 -------- Run | Yrd Mat Mat Mat Total Allies . | . . . . Largest Group . | . . . . Highest-Rated Group . | . . . . Highest-Rated Ally . | . . . . Total Orders . | . . . . Ally Attacks . | . . . . Total Damage . | . . . . Kills . | . . . . Allies Corrupted . | . . . . Allies Melted . | . . . . Intel | -11 -10 -9 -8 ------- Run | Yrd Mat Mat Mat Active Infowar (turns) . | . . . . Robot Analysis Total . | . . . . Derelict Logs Recovered . | . . . . Drone Launches . | . . . . Drone Recoveries . | . . . . Exploration | -11 -10 -9 -8 ------------- Run | Yrd Mat Mat Mat Turns Passed 1175 | 48 518 287 322 Spaces Moved 1021 | 35 550 316 120 Core 30 | 7 . . 23 Treads . | . . . . Legs 194 | 28 166 . . Wheels . | . . . . Hover . | . . . . Flight 797 | . 384 316 97 Fastest Speed 34 | 50 37 37 34 Average Speed 59 | 106 62 38 90 Slowest Speed 150 | 120 120 117 150 Overloaded Moves . | . . . . Propulsion Burnouts . | . . . . Robots Hopped 2 | . 2 . . Potential Cave-ins . | . . . . Cave-ins Triggered . | . . . . Exploration Rate (%) 26 | 3 60 29 15 Regions Visited 3 Branch Regions . Pre-discovered Areas . | . . . . Known Exits Taken 1 | . 1 . . Unknown Exits Taken 2 | 1 . 1 . Scrap Searched . | . . . . Spaces Dug . | . . . . Terrain Destroyed . | . . . . Melee . | . . . . Projectile . | . . . . AOE . | . . . . Terrain Rammed . | . . . . Walls Destroyed . | . . . . Machines Disabled . | . . . . Actions | -11 -10 -9 -8 --------- Run | Yrd Mat Mat Mat Total 1366 | 46 633 423 264 Wait 145 | . 18 30 97 Move 1014 | 34 545 315 120 Hop 2 | . 2 . . Pick Up 38 | 6 11 17 4 Fast Attach . | . . . . Attach 18 | 6 1 6 5 Detach 1 | . . 1 . Swap 13 | . 5 8 . Drop 18 | . 5 12 1 Fire 117 | . 46 34 37 Melee . | . . . . Ram . | . . . . Kick . | . . . . Crush . | . . . . Escape Stasis . | . . . . Rewire . | . . . . Trap . | . . . . Miscellaneous . | . . . . Route ------- -11/Scrapyard -10/Materials (discovered 5 exits: *Mat x3 / *Min / [*Sub]) -9/Materials (discovered 2 exits: [*Mat] / *Min) -8/Materials History --------- Turn | Location | Event 2 | -11/Scrapyard | Met Revision 17 19 | -11/Scrapyard | Discovered new exit (range 14) 49 | -11/Scrapyard | Entered Materials 303 | -10/Materials | Build established: Mutant 377 | -10/Materials | Discovered new exit (range 14) 421 | -10/Materials | Discovered new exit (range 12) 422 | -10/Materials | Identified exit to Materials 488 | -10/Materials | Discovered new exit (range 7) 496 | -10/Materials | Identified exit to Mines 567 | -10/Materials | Entered another Materials area 567 | -9/Materials | Evolved 2 slots: Utility x2 748 | -9/Materials | Discovered new exit (range 12) 761 | -9/Materials | Identified exit to Mines 849 | -9/Materials | Discovered new exit (range 11) 854 | -9/Materials | Entered another Materials area 854 | -8/Materials | Evolved 2 slots: Propulsion x1, Utility x1 917 | -8/Materials | Build established: Scavenger-Mutant 1004 | -8/Materials | Garrison activated, responded to threat 1104 | -8/Materials | Core integrity fell below 50% 1112 | -8/Materials | Lost 7 parts (1p2n2u2w) 1143 | -8/Materials | Core integrity fell below 20% 1176 | -8/Materials | Destroyed by G-47 Trooper with Particle Gun Last Messages --------------- 01077_ Internal heat damage averted by Cryofiber Web. 01077_ Overheating: Sml. Storage Unit damaged (-46). 01078_ G-47 Trooper heat damages Aluminum Leg. 01079_ G-47 Trooper destroyed. 01081_ Propulsion Shielding destroyed. 01081_ Flight Unit destroyed. 01082_ G-47 Trooper suffers critical hit (Burn). 01083_ Imp. Medium Laser broken. 01083_ Overheating: Short circuit. 01088_ R-06 Scavenger collects Nuclear Core. 01092_ R-06 Scavenger collects Airjet. 01095_ R-06 Scavenger collects Nuclear Core. 01113_ Sml. Storage Unit destroyed. 01115_ Broken Imp. Medium Laser destroyed. 01144_ Hacking Suite destroyed. 01155_ R-06 Scavenger collects Airjet. 01159_ R-06 Scavenger collects Transport Network Coupler. 01162_ R-06 Scavenger collects Aluminum Leg. 01166_ Cryofiber Web destroyed. 01166_ R-06 Scavenger collects Aluminum Leg. Map ----- +----------------------------------------------------+ | | | | | | | | | | | ###########?????????????????????????? | | #?????????????????????????? | | #?????????????????????????? | | """ #?????????????????????????? | | """ !!! #?????????????????????????? | | """ !!! ##????????????????????????? | | !! #????????????????????????? | | #?????????????????????????? | | ####"#########??????????????????????? | | % ???????????????? | | ########???????????????????#??? | | #??????????#####????????##/#??? | | ####+###?????????# ??????? ! ??? | | !!%!! #?????????# ??####? ???? | | !!"""! #?????????# " "??# # """ ??? | | !!""" #?????????# "G"^ # # """ #?? | | =""" #?????????# " + r """ #?? | | =![ #?????????# ! # # #?? | | #+##################+#?## ##???###?? | | #%#?# ## ### #???????? | | # #?# + % @ #???????? | | # #?# # % g T #???????? | | # ### #% ### #???????? | | # + #=%####+######????? | | ##### # !## T #????? | | ????###############!%## #????? | | ??????????????????# ## = ! #????? | | ?????????????????# # #????? | | ?????????????????# # #????? | | ?????????????????# + """ #????? | | ?????????????????# # """ #????? | | ?????????????????##+### """ #????? | | ??????????????????????# !#????? | | ??????????????????????#####?####????? | | ????????????????????????????????????? | | ????????????????????????????????????? | | ????????????????????????????????????? | | ????????????????????????????????????? | | ????????????????????????????????????? | | ????????????????????????????????????? | | ????????????????????????????????????? | | ????????????????????????????????????? | | ????????????????????????????????????? | | ????????????????????????????????????? | | ????????????????????????????????????? | +----------------------------------------------------+ Best States ------------- Heat Dissipation 31 Energy Generation 14 Energy Capacity 250 Matter Stores 300 Matter Capacity 300 Sight Range 16 Terrain Scan Density 10 Additional Mass Support 6 Base Temperature (-) 100 Propulsion Shielding 33 Evasion (%) 63 Offensive Hacking 10 Item Schematics ----------------- None Robot Schematics ------------------ None Fabricated ------------ Nothing Repaired ---------- Nothing Alien Tech Used ----------------- None Achievements -------------- None Challenges ------------ None Game ------ Seed DecoderSurgeCore Manual? 0 Play Time 00:20:03 Cumulative 52.1 hours Start 2025.06.09 @ 15:49:47 End 2025.06.10 @ 10:30:33 Sessions 3 Manual Loads 0 Difficulty Rogue Special Mode None Game No. 107 Rogue 107 Adventurer 0 Explorer 0 Win Type - Total 0 Types 0/0/0/0/0/0/0/0/0/0 Lore% 16 Gallery% 28 Achievement% 24 Wizard Run 0 Options --------- Layout 0 ASCII 0 Keyboard 0 Movement Mouse Keybinds 0 Fullscreen 1 Font 24/Smallcaps Map View 76x50 Zoom Use 0% Tactical HUD 1 Map Filters NONE Filters NONE Steam 1 RUN: 1de560c5-aa5b-4c1e-91bf-5302870db29e